Cogmind - Beta 13 @@@ ROGUE MODE // 2024.04.12 @ 00:43:21 Player: GregoriusTechneticies Result: Destroyed by X-62 Marksman with Pulse Rifle Performance ------------- Evolutions (2) 1000 Regions Visited (3) 600 Robots Destroyed (40) 200 Value Destroyed (535) 535 Prototype IDs (0) 0 Alien Tech Used (0) 0 Bonus (0) 0 TOTAL SCORE: 2335 Bonus ------- None Cogmind --------- Core Integrity 0/550 Matter 274/300 Energy 100/100 System Corruption 0% Temperature Cool (9) Movement Core (200) Ox3 Location -8/Materials Parts ------- > --- POWER (2) -------- (None) > --- PROPULSION (2) --- (None) > --- UTILITY (5) ------ Medium Storage Unit Terrain Scan Processor > --- WEAPON (2) ------- (None) > --- INVENTORY (10) --- Structural Scanner Improved Targeting Computer Improved Targeting Computer Advanced Targeting Computer Shield Generator Shield Generator Heavy EM Pulse Gun Heavy EM Pulse Gun Autogun Rocket Launcher Peak State ------------ > --- POWER ------------ Light Ion Engine > --- PROPULSION ------- Wheel Wheel > --- UTILITY ---------- Medium Storage Unit Improved Terrain Scanner Terrain Scan Processor Seismic Detector ECM Suite > --- WEAPON ----------- Heavy Assault Rifle Autogun > --- INVENTORY -------- Structural Scanner Improved Targeting Computer Improved Targeting Computer Advanced Targeting Computer Shield Generator Shield Generator Heavy EM Pulse Gun Heavy EM Pulse Gun Rocket Launcher Flail [Rating: 17] Favorites ----------- Power Light Ion Engine Engine Light Ion Engine Propulsion Wheel Wheel Wheel Utility Small Storage Unit Device Seismic Detector Storage Small Storage Unit Processor Terrain Scan Processor Weapon Medium Laser Energy Gun Medium Laser Ballistic Gun Autogun Special Weapon Mining Laser Impact Weapon Flail Build | -11 -10 -9 -8 ------- Run | Yrd Mat Mat Mat Slots Evolved 4 | . . 2 2 Power 1 | . . . 1 Propulsion . | . . . . Utility 3 | . . 2 1 Weapon . | . . . . Parts Attached 47 | 10 9 24 4 Power 6 | 1 2 3 . Engine 6 | 1 2 3 . Core . | . . . . Reactor . | . . . . Propulsion 8 | 2 2 4 . Treads . | . . . . Leg . | . . . . Wheel 8 | 2 2 4 . Hover . | . . . . Flight . | . . . . Utility 15 | 5 1 6 3 Device 9 | 3 . 5 1 Storage 5 | 2 . 1 2 Processor 1 | . 1 . . Hackware . | . . . . Protection . | . . . . Artifact . | . . . . Weapon 18 | 2 4 11 1 Energy Gun 3 | 2 1 . . Energy Cannon . | . . . . Ballistic Gun 9 | . 1 8 . Ballistic Cannon . | . . . . Launcher . | . . . . Special Weapon 3 | . 2 1 . Impact Weapon 3 | . . 2 1 Slashing Weapon . | . . . . Piercing Weapon . | . . . . Special Melee Weapon . | . . . . Unidentified Prototypes . | . . . . Parts Lost 11 | . 3 . 8 Power 1 | . . . 1 Propulsion 3 | . 1 . 2 Utility 4 | . 1 . 3 Weapon 3 | . 1 . 2 Highest Loss Streak 8 | . 3 . 8 To Critical Strikes . | . . . . Average Slot Usage (%) 94 | . 96 100 83 Engine 11 | . 14 11 8 Wheel 21 | . 26 22 16 Device 19 | . 11 22 24 Storage 11 | . 14 11 9 Processor 8 | . 1 11 9 Energy Gun 9 | . 24 6 . Ballistic Gun 9 | . 1 11 15 Special Weapon 1 | . . 2 . Impact Weapon 1 | . . 1 1 Naked Turns . | . . . . Heaviest Build 23 | 13 13 21 23 Greatest Support 20 | 20 20 20 20 Greatest Overweight (x) 5 | 1 1 1 5 Average Overweight (x) . | . . . 1 Largest Inventory Capacity 25 | 8 8 10 25 Average Capacity 8 | 7 8 8 10 Most Carried 11 | 8 8 10 11 Average Carried 7 | 5 7 7 9 Final Capacity 10 | 8 8 10 10 Final Carried 10 | 8 6 10 10 Class Distribution -------------------- 63% | Scavenger-Mutant 36% | Mutant Dominant Class ---------------- Mutant | -10/Materials Scavenger-Mutant | -9/Materials Scavenger-Mutant | -8/Materials Resources | -11 -10 -9 -8 ----------- Run | Yrd Mat Mat Mat Matter Collected 1086 | 300 144 615 27 Remotely . | . . . . Salvage Created 1236 | 276 255 696 9 Parts 91 | 32 12 47 . Haulers Intercepted 2 | . . 2 . Recyclers Shooed 2 | . 1 1 . Parts Field Recycled . | . . . . Retrieved Matter . | . . . . Parts Self-Destructed . | . . . . Prevented . | . . . . Kills | -11 -10 -9 -8 ------- Run | Yrd Mat Mat Mat Combat Hostiles Destroyed 14 | . 6 8 . Guns 13 | . 5 8 . Classes Destroyed 9 | 3 3 3 . Worker 4 | 2 . 2 . Builder 4 | . 1 2 1 Tunneler 11 | 9 . 2 . Hauler 2 | . . 2 . Recycler 4 | 1 1 2 . Watcher 1 | . . 1 . Swarmer 6 | . 3 3 . Grunt 6 | . 3 3 . Sentry 2 | . . 2 . Best Kill Streak 6 | 5 5 6 1 Combat Bots Only 4 | . 4 3 . Max Kills in Single Turn 1 | 1 1 1 1 Gunslinging . | . . . . Exploded . | . . . . Melee . | . . . . Uniques/NPCs Destroyed . | . . . . Combat | -11 -10 -9 -8 -------- Run | Yrd Mat Mat Mat Hostile Shots Fired 200 | . 39 48 113 Missed 55 | . 8 13 34 Damage Taken 1854 | . 297 423 1134 Core 743 | . 68 112 563 Absorbed by Shields . | . . . . Core Remaining (%) 81 | 100 72 72 . Volleys Fired 120 | 21 33 64 2 Largest 2 | 2 2 2 2 Hottest 100 | 100 100 100 46 Shots Fired 219 | 42 58 115 4 Gun 215 | 42 55 114 4 Cannon . | . . . . Launcher . | . . . . Special 4 | . 3 1 . Kinetic 98 | . 4 90 4 Thermal 121 | 42 54 25 . Explosive . | . . . . Electromagnetic . | . . . . Robot Hit Streak 11 | 8 11 11 3 Robot Miss Streak 7 | 2 7 3 1 Penetration Max . | . . . . Secondary Targets 1 | . 1 . . Max Gunslinging Chain 1 | . 1 . . Shots Hit Robots 143 | 27 33 78 5 Core Hits 55 | 13 13 28 1 Critical Kills . | . . . . Critical Parts Destroyed 1 | . . . 1 Critical Strikes 10 | 2 2 5 1 Burn 9 | 2 2 5 . Smash 1 | . . . 1 Melee Attacks 11 | . . 4 7 Impact 11 | . . 4 7 Slashing . | . . . . Piercing . | . . . . Sneak Attacks 1 | . . . 1 Combat Hostiles . | . . . . Follow-up Attacks . | . . . . Damage Inflicted 2047 | 353 411 1124 159 Guns 1929 | 353 411 1124 41 Cannons . | . . . . Explosions . | . . . . Melee 112 | . . . 112 Ramming 6 | . . . 6 Kinetic 951 | . 9 901 41 Thermal 978 | 353 402 223 . Explosive . | . . . . Electromagnetic . | . . . . Impact 112 | . . . 112 Slashing . | . . . . Piercing . | . . . . Highest Corruption . | . . . . Average Corruption . | . . . . Corruption Purged . | . . . . Corruption Blocked . | . . . . Overload Shots . | . . . . Overflow Damage 92 | . . . 92 Projectiles . | . . . . Explosions . | . . . . Melee 92 | . . . 92 Knockbacks . | . . . . Impact . | . . . . Kinetic . | . . . . Secondary . | . . . . Self-Inflicted Damage 3 | . . . 3 Shots . | . . . . Rammed 3 | . . . 3 Targets Rammed 3 | . . . 3 Kicked . | . . . . Crushed . | . . . . Highest Temperature 469 | 234 469 201 . Average Temperature 124 | 92 196 54 . Received Heat Transfer 450 | . 75 195 180 Effects 8 | . 8 . . Shutdowns 2 | . 2 . . Energy Bleed 2 | . 2 . . Interference 1 | . 1 . . Matter Decay 2 | . 2 . . Short Circuit 1 | . 1 . . Siege Activations . | . . . . Robots Corrupted . | . . . . Combat Hostiles . | . . . . Parts Fried 2 | . . . 2 Impact Corruptions 2 | . . . 2 Robots Melted 1 | . 1 . . Combat Hostiles 1 | . 1 . . Parts Melted 9 | 3 5 1 . Heat Transferred 3552 | 1184 1332 1036 . Parts Sabotaged . | . . . . Parts Stolen . | . . . . Parts Stripped . | . . . . Power Chain Reactions . | . . . . Alert | -11 -10 -9 -8 ------- Run | Yrd Mat Mat Mat Peak Influence 314 | 60 180 314 170 Initial 76 | . 39 . 76 Average 74 | 33 69 90 73 Maximum Alert Level 1 | . . 1 . Low Security (%) 95 | 100 100 90 100 Level 1 4 | . . 9 . Level 2 . | . . . . Level 3 . | . . . . Level 4 . | . . . . Level 5 . | . . . . High Security . | . . . . Max Security . | . . . . Squads Dispatched 2 | . . . 2 Investigation . | . . . . Extermination . | . . . . Reinforcement 2 | . . . 2 Assault . | . . . . Garrison . | . . . . Intercept . | . . . . Searches Triggered . | . . . . Construction Impeded . | . . . . Haulers Reinforced . | . . . . Active Scanning Responses . | . . . . Cargo Convoy Interrupts . | . . . . Stealth | -11 -10 -9 -8 --------- Run | Yrd Mat Mat Mat Distress Signals 4 | . 1 3 . Communications Jammed . | . . . . Distress Signals . | . . . . Times Spotted 57 | . 7 12 38 Peak Tracking Total 19 | . 4 4 19 Tactical Retreats 6 | . . 2 4 Traps | -11 -10 -9 -8 ------- Run | Yrd Mat Mat Mat Traps Triggered . | . . . . Indirectly . | . . . . Trap Hack Attempts . | . . . . Triggered . | . . . . Disarmed . | . . . . Reprogrammed . | . . . . Reused . | . . . . Traps Extracted . | . . . . Installed . | . . . . Triggered . | . . . . Machines | -11 -10 -9 -8 ---------- Run | Yrd Mat Mat Mat Machines Disabled 1 | . . 1 . Max in Single Turn 1 | . . 1 . Machines Repaired . | . . . . Machines Dismantled . | . . . . Machines Sabotaged . | . . . . Overloaded Fab Kills . | . . . . Hacking | -11 -10 -9 -8 --------- Run | Yrd Mat Mat Mat Machines Accessed 3 | . 3 . . Terminals 3 | . 3 . . Fabricators . | . . . . Repair Stations . | . . . . Recycling Units . | . . . . Scanalyzers . | . . . . Garrison Access . | . . . . Total Hacks 9 | . 9 . . Successful 4 | . 4 . . Failed 5 | . 5 . . Catastrophic . | . . . . Database Lockouts . | . . . . Manual 8 | . 8 . . Terminals 9 | . 9 . . Fabricators . | . . . . Repair Stations . | . . . . Recycling Units . | . . . . Scanalyzers . | . . . . Garrison Access . | . . . . Terminal Hacks 2 | . 2 . . Terminal Index 1 | . 1 . . Unreport Threat 1 | . 1 . . Fabricator Hacks . | . . . . Repair Station Hacks . | . . . . Recycling Unit Hacks . | . . . . Scanalyzer . | . . . . Garrison Access Hacks . | . . . . Unauthorized Hacks 2 | . 2 . . Terminals 2 | . 2 . . Botnet 2 | . 2 . . Fabricators . | . . . . Repair Stations . | . . . . Recycling Units . | . . . . Scanalyzers . | . . . . Garrison Access . | . . . . Data Cores Recovered . | . . . . Used . | . . . . Hacking Detections 3 | . 3 . . Full Trace Events . | . . . . Feedback Events . | . . . . Feedback Blocked . | . . . . Robot Schematics Acquired . | . . . . Robots Built . | . . . . Authchips . | . . . . Time . | . . . . Total Robot Build Rating . | . . . . Part Schematics Acquired . | . . . . Parts Built . | . . . . Authchips . | . . . . Time . | . . . . Total Part Build Rating . | . . . . Parts Repaired . | . . . . Time . | . . . . Parts Recycled . | . . . . Recycled Matter . | . . . . Retrieved Matter . | . . . . Retrieved Components . | . . . . Parts Scanalyzed . | . . . . Part Schematics Acquired . | . . . . Parts Damaged . | . . . . Bothacking | -11 -10 -9 -8 ------------ Run | Yrd Mat Mat Mat Used RIF Installer . | . . . . Robots Hacked . | . . . . Non-combat . | . . . . Combat . | . . . . Robot Hacks Applied . | . . . . Relay Couplers Released . | . . . . Fabnet Peak Effective % . | . . . . Robots Rewired . | . . . . Allies Hacked . | . . . . Hacks Repelled . | . . . . Allies | -11 -10 -9 -8 -------- Run | Yrd Mat Mat Mat Total Allies . | . . . . Largest Group . | . . . . Highest-Rated Group . | . . . . Highest-Rated Ally . | . . . . Total Orders . | . . . . Ally Attacks . | . . . . Total Damage . | . . . . Kills . | . . . . Allies Corrupted . | . . . . Allies Melted . | . . . . Intel | -11 -10 -9 -8 ------- Run | Yrd Mat Mat Mat Robot Analysis Total . | . . . . Derelict Logs Recovered . | . . . . Drone Launches . | . . . . Drone Recoveries . | . . . . Exploration | -11 -10 -9 -8 ------------- Run | Yrd Mat Mat Mat Turns Passed 2078 | 286 444 904 444 Spaces Moved 1029 | 244 278 422 85 Core 26 | 12 . . 14 Treads . | . . . . Legs . | . . . . Wheels 1003 | 232 278 422 71 Hover . | . . . . Flight . | . . . . Fastest Speed 50 | 50 80 80 95 Average Speed 84 | 79 81 82 117 Slowest Speed 300 | 100 95 95 300 Overloaded Moves . | . . . . Propulsion Burnouts . | . . . . Robots Hopped . | . . . . Cave-ins Triggered . | . . . . Exploration Rate (%) 21 | 5 37 29 14 Regions Visited 3 Branch Regions . Pre-discovered Areas . | . . . . Known Exits Taken . | . . . . Unknown Exits Taken 3 | 1 1 1 . Scrap Searched . | . . . . Spaces Dug 8 | . 2 5 1 Terrain Destroyed 8 | . 2 5 1 Melee 5 | . . 4 1 Projectile 3 | . 2 1 . AOE . | . . . . Terrain Rammed . | . . . . Walls Destroyed . | . . . . Machines Disabled . | . . . . Actions | -11 -10 -9 -8 --------- Run | Yrd Mat Mat Mat Total 2023 | 302 432 875 414 Wait 741 | . 104 329 308 Move 1026 | 243 277 421 85 Hop . | . . . . Pick Up 41 | 21 4 13 3 Fast Attach 4 | . 1 3 . Attach 14 | 8 3 2 1 Detach . | . . . . Swap 29 | 2 5 19 3 Drop 34 | 7 5 20 2 Fire 120 | 21 33 64 2 Melee 11 | . . 4 7 Ram 3 | . . . 3 Kick . | . . . . Crush . | . . . . Escape Stasis . | . . . . Rewire . | . . . . Trap . | . . . . Miscellaneous . | . . . . Route ------- -11/Scrapyard -10/Materials -9/Materials (discovered 2 exits: [*Mat] / [*Sto]) -8/Materials History --------- Turn | Location | Event 10 | -11/Scrapyard | Discovered new exit (range 16) 287 | -11/Scrapyard | Entered Materials 307 | -10/Materials | Build established: Mutant 688 | -10/Materials | Lost 3 parts (1n1u1w) 698 | -10/Materials | Discovered new exit (range 13) 731 | -10/Materials | Entered another Materials area 731 | -9/Materials | Evolved 2 slots: Utility x2 1012 | -9/Materials | Build established: Scavenger-Mutant 1373 | -9/Materials | Discovered new exit (range 16) 1515 | -9/Materials | Discovered new exit (range 15) 1635 | -9/Materials | Entered another Materials area 1635 | -8/Materials | Evolved 2 slots: Power x1, Utility x1 2072 | -8/Materials | Core integrity fell below 50% 2077 | -8/Materials | Core integrity fell below 20% 2079 | -8/Materials | Destroyed by X-62 Marksman with Pulse Rifle Last Messages --------------- 02045_ ECM Suite destroyed. 02054_ Destroyed Flight Unit. 02054_ S-10 Pest system corrupted by crushing effect. 02060_ Flail destroyed. 02061_ Slammed into S-10 Pest. 02061_ Terrain Scan Processor broken. 02061_ Destabilizing: Short circuit. 02063_ Slammed into U-05 Engineer. 02071_ Penetrated by Slug. 02071_ S-10 Pest destroyed. 02071_ Knocked back. 02073_ Penetrated by Slug. 02073_ S-10 Pest destroyed. 02074_ X-62 Marksman destroyed. 02076_ Critical hit (Burn: +37). 02077_ Acquired 10 matter. 02079_ Slammed into X-62 Marksman. 02079_ Penetrated by Slug. 02079_ S-10 Pest destroyed. Map ----- +----------------------------------------------------+ | ###????#????????????????????????????????? | | #?#?????????????????????????????????????? | | ####??????#?????????????????????????????? | | ###### ?????????????????????????????????? | | ###?#???#???????????????????????????????? | | #??? ? ? ???? ? ?????? ?????????????? | | ####????? ? ??? ??????? #????????????? | | ##?# ???????????? ?? #????????????? | | #?#? #???? ?????????? #????????????? | | #?##? ???###?#???#???? #????????????? | | ####? #?# ????????#g #????????????? | | ##### #?# ????#??# #????????????? | | #?# ???????#Y #????????????? | | #?# """#???# g #????????????? | | #?# """#?#?#s #????????????? | | ##########? """###?# [H##???????????? | | ###??#?????? """#???#*%=#????????????? | | #?#????????? """##??#s%*###??????????? | | ##??#??????? ##??# #? ????????? | | ###############"######% #??????????? | | / % %% [ #??????????? | | ##################"###!* #??????????? | | ###?##???????????###?#s! #??????????? | | ##????????##????#????##= ##??????????? | | #??##??????#????#???#?# #?#?????????? | | #####????#?#???#??#??##?#@ #???????????? | | ??????????#?#???????##??#x #???????????? | | ???????????????#????#???# #???????????? | | ????? ????#???#?#?#????? #??????????? | | ? ? ???????#??#?#???# = ?????????? | | ??#??##???????##?????#?? ????????? | | ???????#?##??????#??##?? ???????? | | ?#??##????#???##???????# #####??????? | | #?#??????????#?#???????## ##??????????? | | ??????????#?????????#???? #???????????? | | ?#???????????###????????? +???????????? | | ????????????????????????? #???????????? | | ????????????????????????? g #???????????? | | ????????????????????????? #???????????? | | ????????????????????????? #???????????? | | ????????????????????????? ????????????? | | ????????????????????????????????????????? | | ????????????????????????????????????????? | | ????????????????????????????????????????? | | ????????????????????????????????????????? | | ????????????????????????????????????????? | | ????????????????????????????????????????? | | ????????????????????????????????????????? | | ????????????????????????????????????????? | | ????????????????????????????????????????? | +----------------------------------------------------+ Best States ------------- Heat Dissipation 31 Energy Generation 10 Energy Capacity 250 Matter Stores 300 Matter Capacity 300 Sight Range 16 Terrain Scan Range 16 Terrain Scan Density 85 ECM Strength 1 Evasion (%) 44 Item Schematics ----------------- None Robot Schematics ------------------ None Fabricated ------------ Nothing Alien Tech Used ----------------- None Achievements -------------- None Challenges ------------ None Game ------ Seed PoweredAntimissileRay Manual? 0 Play Time 00:26:25 Cumulative 24.0 hours Start 2024.04.12 @ 00:18:06 End 2024.04.12 @ 00:43:21 Sessions 1 Manual Loads 0 Difficulty Rogue Special Mode None Game No. 30 Rogue 15 Adventurer 0 Explorer 15 Win Type - Total 0 Types 0/0/0/0/0/0/0/0/0 Lore% 14 Gallery% 25 Achievement% 19 Wizard Run 0 Options --------- Layout 1 ASCII 0 Keyboard 0 Movement Mouse Keybinds 0 Fullscreen 1 Font 24/Smallcaps Map View 50x35 Zoom Use 0% Tactical HUD 1 Map Filters NONE Filters NONE Steam 1 RUN: 47dfd219-97c2-4c2e-bc33-698f1ce21765